[Event "GrandPrix_29.05"]
[Site "Chess.com"]
[Date "2020.05.29"]
[Round "6"]
[White "ehrenfeld"]
[Black "Dolphin_2010"]
[Result "0-1"]
[WhiteElo "2086"]
[BlackElo "2167"]
[TimeControl "600+2"]
[EndTime "11:56:19 PDT"]
[Termination "Dolphin_2010 won by resignation"]

1. e4 {[%clk 0:10:01.9]} 1... c6 {[%clk 0:10:00.3]} 2. d4 {[%clk 0:10:02.1]}
2... d5 {[%clk 0:10:02.2]} 3. exd5 {[%clk 0:10:03.2]} 3... cxd5 {[%clk
0:10:03.8]} 4. Bd3 {[%clk 0:10:04.4]} 4... Nc6 {[%clk 0:10:03.9]} 5. c3 {[%clk
0:10:05.5]} 5... Qc7 {[%clk 0:10:03.6]} 6. Ne2 {[%clk 0:10:05.9]} 6... Bg4
{[%clk 0:10:01.7]} 7. O-O {[%clk 0:10:06.4]} 7... Nf6 {[%clk 0:09:55.8]} 8. Qe1
{[%clk 0:09:44.5]} 8... Bxe2 {[%clk 0:09:47.2]} 9. Qxe2 {[%clk 0:09:44.5]} 9...
e6 {[%clk 0:09:46.5]} 10. Nd2 {[%clk 0:08:43.3]} 10... Bd6 {[%clk 0:09:44.2]}
11. g3 {[%clk 0:08:39.1]} 11... O-O {[%clk 0:09:40.2]} 12. f4 {[%clk 0:08:38.2]}
12... Rfe8 {[%clk 0:09:40.3]} 13. Nf3 {[%clk 0:08:38.4]} 13... Nd7 {[%clk
0:09:35.3]} 14. Bd2 {[%clk 0:07:54.6]} 14... f5 {[%clk 0:09:02]} 15. Kh1 {[%clk
0:07:54.2]} 15... Nf6 {[%clk 0:09:01]} 16. Ne5 {[%clk 0:07:52.5]} 16... Ne4
{[%clk 0:08:58.4]} 17. Rg1 {[%clk 0:07:05.2]} 17... Bxe5 {[%clk 0:08:33.8]} 18.
fxe5 {[%clk 0:07:05.1]} 18... Qa5 {[%clk 0:08:10.7]} 19. Be3 {[%clk 0:06:41.6]}
19... Rf8 {[%clk 0:07:58.2]} 20. a3 {[%clk 0:06:25.9]} 20... Qd8 {[%clk
0:07:30.6]} 21. Raf1 {[%clk 0:06:24.7]} 21... g5 {[%clk 0:05:59.4]} 22. Bxe4
{[%clk 0:06:00.6]} 22... dxe4 {[%clk 0:05:54.1]} 23. Qh5 {[%clk 0:05:51.4]}
23... g4 {[%clk 0:05:38.4]} 24. h3 {[%clk 0:05:39.9]} 24... Qe8 {[%clk
0:05:35.7]} 25. hxg4 {[%clk 0:05:03.6]} 25... Qxh5+ {[%clk 0:05:25.9]} 26. gxh5
{[%clk 0:05:04.5]} 26... Ne7 {[%clk 0:05:23.7]} 27. g4 {[%clk 0:04:47.6]} 27...
Kf7 {[%clk 0:05:20.4]} 28. Bg5 {[%clk 0:04:26.9]} 28... Rae8 {[%clk 0:04:54.4]}
29. Kh2 {[%clk 0:03:57.1]} 29... b5 {[%clk 0:04:43.6]} 30. Kg3 {[%clk
0:03:40.8]} 30... Rg8 {[%clk 0:04:28.6]} 31. Kh4 {[%clk 0:03:39.1]} 31... Nd5
{[%clk 0:03:54.9]} 32. gxf5 {[%clk 0:03:37.8]} 32... exf5 {[%clk 0:03:56.8]} 33.
Rxf5+ {[%clk 0:03:38.4]} 33... Ke6 {[%clk 0:03:57.3]} 34. Rff1 {[%clk
0:03:31.5]} 34... h6 {[%clk 0:03:37.2]} 35. Bxh6 {[%clk 0:03:30.8]} 35... Ne7
{[%clk 0:03:35.6]} 36. Rxg8 {[%clk 0:03:21.2]} 36... Rxg8 {[%clk 0:03:37.5]} 37.
Bg5 {[%clk 0:03:21.4]} 37... Nf5+ {[%clk 0:03:37.7]} 38. Rxf5 {[%clk 0:03:12.5]}
38... Kxf5 {[%clk 0:03:38.5]} 39. Bf6 {[%clk 0:02:51.3]} 39... e3 {[%clk
0:03:36.3]} 40. h6 {[%clk 0:02:51]} 40... e2 {[%clk 0:03:35.9]} 0-1

[Event "GrandPrix_29.05"]
[Site "Chess.com"]
[Date "2020.05.29"]
[Round "6"]
[White "Semen_Khanin"]
[Black "viktorskliarov"]
[Result "1/2-1/2"]
[WhiteElo "2369"]
[BlackElo "2198"]
[TimeControl "600+2"]
[EndTime "11:56:26 PDT"]
[Termination "Game drawn by repetition"]

1. e4 {[%clk 0:10:01.9]} 1... c5 {[%clk 0:10:00.5]} 2. Nf3 {[%clk 0:10:02.7]}
2... Nc6 {[%clk 0:10:00.8]} 3. d4 {[%clk 0:10:03.6]} 3... cxd4 {[%clk
0:10:02.2]} 4. Nxd4 {[%clk 0:10:05.5]} 4... Nf6 {[%clk 0:10:03.8]} 5. Nc3 {[%clk
0:10:06.8]} 5... e5 {[%clk 0:10:05.2]} 6. Ndb5 {[%clk 0:10:08]} 6... d6 {[%clk
0:10:06.7]} 7. Bg5 {[%clk 0:10:09.5]} 7... a6 {[%clk 0:10:08.3]} 8. Na3 {[%clk
0:10:11.2]} 8... b5 {[%clk 0:10:09.9]} 9. Bxf6 {[%clk 0:10:12.9]} 9... gxf6
{[%clk 0:10:10.9]} 10. Nd5 {[%clk 0:10:14.5]} 10... f5 {[%clk 0:10:12.5]} 11. c3
{[%clk 0:10:15.3]} 11... Bg7 {[%clk 0:10:13.6]} 12. exf5 {[%clk 0:10:14.4]}
12... Bxf5 {[%clk 0:10:13.4]} 13. Nc2 {[%clk 0:10:16.1]} 13... O-O {[%clk
0:10:14.3]} 14. Nce3 {[%clk 0:10:17.4]} 14... Be6 {[%clk 0:10:15.6]} 15. Bd3
{[%clk 0:10:18.5]} 15... f5 {[%clk 0:10:16.5]} 16. O-O {[%clk 0:10:19.4]} 16...
Kh8 {[%clk 0:10:04.2]} 17. f4 {[%clk 0:09:54.9]} 17... e4 {[%clk 0:09:39.7]} 18.
Bc2 {[%clk 0:09:53.1]} 18... b4 {[%clk 0:09:38.8]} 19. Ba4 {[%clk 0:09:45.5]}
19... Bxd5 {[%clk 0:09:08.4]} 20. Nxd5 {[%clk 0:09:37]} 20... Ne7 {[%clk
0:08:28]} 21. Nxb4 {[%clk 0:09:23]} 21... d5 {[%clk 0:08:25.3]} 22. Kh1 {[%clk
0:08:28]} 22... d4 {[%clk 0:07:54.5]} 23. cxd4 {[%clk 0:08:28.5]} 23... Qxd4
{[%clk 0:07:54.7]} 24. Qxd4 {[%clk 0:07:25.6]} 24... Bxd4 {[%clk 0:07:56.6]} 25.
Rab1 {[%clk 0:07:27.3]} 25... Rfb8 {[%clk 0:06:10.7]} 26. Nc6 {[%clk 0:06:12.5]}
26... Nxc6 {[%clk 0:06:09.9]} 27. Bxc6 {[%clk 0:06:14.1]} 27... Ra7 {[%clk
0:06:11.6]} 28. b4 {[%clk 0:05:45.1]} 28... Rc7 {[%clk 0:05:51.5]} 29. b5 {[%clk
0:05:44.7]} 29... e3 {[%clk 0:04:34.1]} 30. a4 {[%clk 0:05:29.6]} 30... e2
{[%clk 0:04:22.9]} 31. Rfe1 {[%clk 0:05:07.3]} 31... Bc3 {[%clk 0:04:18.7]} 32.
Kg1 {[%clk 0:04:15.5]} 32... Bd4+ {[%clk 0:03:26.5]} 33. Kh1 {[%clk 0:04:14.7]}
33... Bc3 {[%clk 0:03:27.8]} 34. Kg1 {[%clk 0:02:26.1]} 34... Bd4+ {[%clk
0:03:26.6]} 35. Kh1 {[%clk 0:02:26.9]} 1/2-1/2

[Event "GrandPrix_29.05"]
[Site "Chess.com"]
[Date "2020.05.29"]
[Round "6"]
[White "Zakaryan_David"]
[Black "Dyadya81"]
[Result "1/2-1/2"]
[WhiteElo "1466"]
[BlackElo "2245"]
[TimeControl "600+2"]
[EndTime "11:56:32 PDT"]
[Termination "Game drawn by agreement"]

1. d4 {[%clk 0:10:00.3]} 1... Nf6 {[%clk 0:09:58.4]} 2. c4 {[%clk 0:09:58.2]}
2... g6 {[%clk 0:09:58.6]} 3. Nc3 {[%clk 0:09:57.8]} 3... Bg7 {[%clk 0:09:59.5]}
4. e4 {[%clk 0:09:57.6]} 4... d6 {[%clk 0:10:00.3]} 5. Nf3 {[%clk 0:09:57.4]}
5... O-O {[%clk 0:10:01]} 6. h3 {[%clk 0:09:57.3]} 6... e5 {[%clk 0:09:59.4]} 7.
d5 {[%clk 0:09:57.4]} 7... a5 {[%clk 0:10:00]} 8. Be3 {[%clk 0:09:56.8]} 8...
Na6 {[%clk 0:09:59.2]} 9. Be2 {[%clk 0:09:56.5]} 9... Nh5 {[%clk 0:09:54.3]} 10.
g3 {[%clk 0:09:56.1]} 10... f5 {[%clk 0:09:54.1]} 11. exf5 {[%clk 0:09:55.2]}
11... gxf5 {[%clk 0:09:55.3]} 12. Nh4 {[%clk 0:09:55.1]} 12... f4 {[%clk
0:09:47.8]} 13. Bxh5 {[%clk 0:09:18.5]} 13... fxe3 {[%clk 0:09:46.3]} 14. fxe3
{[%clk 0:08:56.4]} 14... Qg5 {[%clk 0:09:47.4]} 15. Ne4 {[%clk 0:08:50]} 15...
Qxe3+ {[%clk 0:09:43.5]} 16. Qe2 {[%clk 0:08:49.8]} 16... Bh6 {[%clk 0:09:04.3]}
17. Qxe3 {[%clk 0:08:40]} 17... Bxe3 {[%clk 0:09:06.2]} 18. Ke2 {[%clk
0:08:15.3]} 18... Bh6 {[%clk 0:08:29.4]} 19. Raf1 {[%clk 0:08:11.9]} 19... Rxf1
{[%clk 0:08:26.9]} 20. Rxf1 {[%clk 0:06:32.2]} 20... Bxh3 {[%clk 0:08:26.7]} 21.
Rf3 {[%clk 0:06:32.1]} 21... Rf8 {[%clk 0:08:07.5]} 22. Rxf8+ {[%clk 0:06:11.9]}
22... Kxf8 {[%clk 0:08:09.4]} 23. g4 {[%clk 0:06:10.6]} 23... Bf4 {[%clk
0:07:42.6]} 24. Nf2 {[%clk 0:05:59.6]} 24... Bg3 {[%clk 0:07:40.2]} 25. Nf5
{[%clk 0:05:58.4]} 25... Bxf2 {[%clk 0:07:38.1]} 26. Kxf2 {[%clk 0:06:00.3]}
26... Nc5 {[%clk 0:07:35.7]} 27. Ne3 {[%clk 0:05:49.2]} 27... Ne4+ {[%clk
0:07:07.9]} 28. Kf3 {[%clk 0:05:49.3]} 28... Ng5+ {[%clk 0:07:07.3]} 29. Kg3
{[%clk 0:05:49.5]} 29... Kg7 {[%clk 0:07:02.6]} 30. Be8 {[%clk 0:05:36.7]} 30...
Kf6 {[%clk 0:06:59.1]} 31. Ba4 {[%clk 0:05:34.5]} 31... e4 {[%clk 0:06:38.4]}
32. Kf4 {[%clk 0:05:34.3]} 32... Kg6 {[%clk 0:05:58.3]} 33. Bc2 {[%clk 0:05:31]}
33... h5 {[%clk 0:05:59.6]} 34. gxh5+ {[%clk 0:05:30.3]} 34... Kxh5 {[%clk
0:06:00.6]} 35. Bxe4 {[%clk 0:05:29.1]} 35... Bd7 {[%clk 0:05:56.9]} 36. b3
{[%clk 0:05:06.3]} 36... Nh3+ {[%clk 0:05:55.5]} 37. Kg3 {[%clk 0:05:01.8]}
37... Kg5 {[%clk 0:05:56.4]} 38. Ng2 {[%clk 0:04:54.2]} 38... Bg4 {[%clk
0:05:51.1]} 39. Bf3 {[%clk 0:04:47.9]} 39... Bxf3 {[%clk 0:05:34.7]} 40. Kxf3
{[%clk 0:04:47.6]} 40... Kf6 {[%clk 0:05:33.1]} 41. Ke4 {[%clk 0:04:42.2]} 41...
Nf2+ {[%clk 0:05:25.4]} 42. Ke3 {[%clk 0:04:39.8]} 42... Ng4+ {[%clk 0:05:21.2]}
43. Kf4 {[%clk 0:04:38.7]} 43... Ne5 {[%clk 0:05:22.3]} 44. Ke4 {[%clk
0:04:34.9]} 44... Nd7 {[%clk 0:05:17.8]} 45. Ne1 {[%clk 0:04:07.1]} 45... Nc5+
{[%clk 0:04:59]} 46. Kf4 {[%clk 0:04:06.6]} 46... Na6 {[%clk 0:04:38.1]} 47. Ke4
{[%clk 0:03:52]} 47... a4 {[%clk 0:04:32.2]} 48. Kd4 {[%clk 0:03:47]} 48... axb3
{[%clk 0:04:01.3]} 49. axb3 {[%clk 0:03:48.9]} 49... c5+ {[%clk 0:03:47]} 50.
dxc6 {[%clk 0:03:45.7]} 50... bxc6 {[%clk 0:03:48.1]} 51. Nd3 {[%clk 0:03:45.3]}
51... Ke6 {[%clk 0:03:49]} 52. b4 {[%clk 0:03:44.2]} 52... Nxb4 {[%clk
0:03:48.1]} 53. Nxb4 {[%clk 0:03:43.2]} 53... c5+ {[%clk 0:03:49.4]} 54. Kc3
{[%clk 0:03:43.2]} 54... cxb4+ {[%clk 0:03:50.8]} 55. Kxb4 {[%clk 0:03:41.4]}
55... Ke5 {[%clk 0:03:52.1]} 1/2-1/2

[Event "GrandPrix_29.05"]
[Site "Chess.com"]
[Date "2020.05.29"]
[Round "6"]
[White "eristeski7"]
[Black "Inkalubo"]
[Result "1-0"]
[WhiteElo "2111"]
[BlackElo "1853"]
[TimeControl "600+2"]
[EndTime "11:56:43 PDT"]
[Termination "eristeski7 won on time"]

1. e4 {[%clk 0:10:01.6]} 1... Nf6 {[%clk 0:10:00.6]} 2. e5 {[%clk 0:09:56.4]}
2... Nd5 {[%clk 0:10:01.3]} 3. d4 {[%clk 0:09:58]} 3... d6 {[%clk 0:10:01.3]} 4.
Bc4 {[%clk 0:09:58.6]} 4... Nb6 {[%clk 0:10:00.7]} 5. Bb3 {[%clk 0:09:58.2]}
5... Bf5 {[%clk 0:10:01.3]} 6. Qf3 {[%clk 0:09:11.1]} 6... Qc8 {[%clk
0:10:01.2]} 7. Ne2 {[%clk 0:08:43.3]} 7... e6 {[%clk 0:09:29.5]} 8. Ng3 {[%clk
0:08:40.5]} 8... Bg6 {[%clk 0:09:29.3]} 9. h4 {[%clk 0:08:17.8]} 9... h6 {[%clk
0:09:24.9]} 10. h5 {[%clk 0:08:16.8]} 10... Bh7 {[%clk 0:09:25.1]} 11. Qg4
{[%clk 0:08:03.6]} 11... Nc6 {[%clk 0:06:56.6]} 12. exd6 {[%clk 0:07:49.3]}
12... cxd6 {[%clk 0:06:57.4]} 13. O-O {[%clk 0:07:44.1]} 13... e5 {[%clk
0:06:52.7]} 14. Qf3 {[%clk 0:07:26.2]} 14... Qd7 {[%clk 0:06:53.3]} 15. dxe5
{[%clk 0:07:20.3]} 15... dxe5 {[%clk 0:06:49.9]} 16. Rd1 {[%clk 0:06:59.5]}
16... Nd4 {[%clk 0:06:46.9]} 17. Qe3 {[%clk 0:06:57]} 17... O-O-O {[%clk
0:02:04.2]} 18. c3 {[%clk 0:06:10.5]} 18... Bc5 {[%clk 0:01:39.5]} 19. cxd4
{[%clk 0:05:44]} 19... exd4 {[%clk 0:01:37.4]} 20. Qf3 {[%clk 0:05:40.2]} 20...
Rhe8 {[%clk 0:01:06.7]} 21. Bf4 {[%clk 0:05:32.2]} 21... Na4 {[%clk 0:00:35]}
22. Bxa4 {[%clk 0:04:55.1]} 22... Qxa4 {[%clk 0:00:34.1]} 23. Rc1 {[%clk
0:04:51.6]} 23... Qa5 {[%clk 0:00:08.1]} 24. Nd2 {[%clk 0:04:45.5]} 1-0

[Event "GrandPrix_29.05"]
[Site "Chess.com"]
[Date "2020.05.29"]
[Round "6"]
[White "benko_008"]
[Black "LorisinoC"]
[Result "1-0"]
[WhiteElo "2095"]
[BlackElo "2054"]
[TimeControl "600+2"]
[EndTime "11:56:52 PDT"]
[Termination "benko_008 won by resignation"]

1. d4 {[%clk 0:09:58.4]} 1... d5 {[%clk 0:09:59.8]} 2. Nf3 {[%clk 0:09:57.4]}
2... Nf6 {[%clk 0:09:58.4]} 3. c4 {[%clk 0:09:57.6]} 3... c6 {[%clk 0:09:57.9]}
4. Nbd2 {[%clk 0:09:54.8]} 4... c5 {[%clk 0:09:56.7]} 5. e3 {[%clk 0:09:43.2]}
5... cxd4 {[%clk 0:09:51.1]} 6. exd4 {[%clk 0:09:43.2]} 6... Nc6 {[%clk
0:09:49.9]} 7. cxd5 {[%clk 0:09:20.4]} 7... Nxd5 {[%clk 0:09:46.5]} 8. Bc4
{[%clk 0:09:17.7]} 8... Bg4 {[%clk 0:09:31.3]} 9. Qb3 {[%clk 0:09:09.4]} 9...
Be6 {[%clk 0:09:31.1]} 10. O-O {[%clk 0:08:53.5]} 10... a6 {[%clk 0:09:22.2]}
11. Ng5 {[%clk 0:05:39]} 11... b5 {[%clk 0:09:22]} 12. Nxe6 {[%clk 0:05:07.7]}
12... fxe6 {[%clk 0:09:20.7]} 13. Bd3 {[%clk 0:04:43.9]} 13... Nxd4 {[%clk
0:09:12.1]} 14. Qd1 {[%clk 0:04:42.6]} 14... g6 {[%clk 0:09:11]} 15. Nf3 {[%clk
0:04:19.4]} 15... Nxf3+ {[%clk 0:09:11.4]} 16. Qxf3 {[%clk 0:04:18.4]} 16... Bg7
{[%clk 0:08:47.9]} 17. Re1 {[%clk 0:04:12.1]} 17... Rf8 {[%clk 0:08:43]} 18. Qh3
{[%clk 0:04:02.1]} 18... Qb6 {[%clk 0:08:25.1]} 19. Re2 {[%clk 0:03:22.6]} 19...
O-O-O {[%clk 0:08:24.9]} 20. Bg5 {[%clk 0:03:01.2]} 20... Kb8 {[%clk 0:08:07.2]}
21. Rf1 {[%clk 0:02:35.6]} 21... Bd4 {[%clk 0:07:55.4]} 22. Bh4 {[%clk
0:02:30.2]} 22... Nf4 {[%clk 0:07:50.6]} 23. Bg3 {[%clk 0:02:29.4]} 23... Ka7
{[%clk 0:07:40.5]} 24. Bxf4 {[%clk 0:02:26.1]} 24... Rxf4 {[%clk 0:07:40.4]} 25.
Rxe6 {[%clk 0:02:26.8]} 25... Bxf2+ {[%clk 0:07:29.9]} 26. Kh1 {[%clk
0:02:21.2]} 26... Qc5 {[%clk 0:06:53.3]} 27. b4 {[%clk 0:02:12.5]} 27... Qxb4
{[%clk 0:06:42.4]} 28. Qxh7 {[%clk 0:01:43.3]} 28... Rd7 {[%clk 0:05:55.8]} 29.
Qxg6 {[%clk 0:01:32.3]} 29... Rd6 {[%clk 0:05:51.1]} 30. Rxe7+ {[%clk
0:01:30.6]} 30... Kb6 {[%clk 0:05:46.5]} 31. Qh7 {[%clk 0:01:11.8]} 31... Rh4
{[%clk 0:05:30.1]} 32. Rb7+ {[%clk 0:01:03.5]} 32... Ka5 {[%clk 0:05:30.6]} 33.
Qc7+ {[%clk 0:00:41.1]} 33... Rb6 {[%clk 0:05:30.7]} 34. Rxf2 {[%clk 0:00:35.5]}
34... Qd4 {[%clk 0:04:58.4]} 35. Qxb6+ {[%clk 0:00:33.2]} 35... Qxb6 {[%clk
0:04:58.3]} 36. Rxb6 {[%clk 0:00:35.1]} 1-0

[Event "GrandPrix_29.05"]
[Site "Chess.com"]
[Date "2020.05.29"]
[Round "6"]
[White "N4700000"]
[Black "nurgyulsalimova"]
[Result "1-0"]
[WhiteElo "2404"]
[BlackElo "2175"]
[TimeControl "600+2"]
[EndTime "11:56:54 PDT"]
[Termination "N4700000 won by resignation"]

1. e4 {[%clk 0:10:01.9]} 1... c6 {[%clk 0:09:59.9]} 2. Nc3 {[%clk 0:09:58.2]}
2... d5 {[%clk 0:10:00.6]} 3. Qe2 {[%clk 0:09:59.2]} 3... d4 {[%clk 0:09:54.1]}
4. Nd1 {[%clk 0:09:58.9]} 4... e5 {[%clk 0:09:37.4]} 5. g3 {[%clk 0:09:54.7]}
5... c5 {[%clk 0:09:25.5]} 6. d3 {[%clk 0:09:52.1]} 6... Nc6 {[%clk 0:09:26]} 7.
f4 {[%clk 0:09:50.1]} 7... Bd6 {[%clk 0:09:18.1]} 8. Nf3 {[%clk 0:09:47.7]} 8...
Nge7 {[%clk 0:09:10.6]} 9. Bg2 {[%clk 0:09:41.3]} 9... O-O {[%clk 0:09:05.1]}
10. f5 {[%clk 0:09:36.7]} 10... f6 {[%clk 0:08:35.4]} 11. g4 {[%clk 0:09:35.7]}
11... g5 {[%clk 0:08:30.9]} 12. h4 {[%clk 0:09:31.9]} 12... h6 {[%clk
0:08:31.2]} 13. Nf2 {[%clk 0:08:52.3]} 13... b5 {[%clk 0:08:16.5]} 14. hxg5
{[%clk 0:08:30.2]} 14... hxg5 {[%clk 0:08:16.7]} 15. Rh5 {[%clk 0:08:30]} 15...
Kf7 {[%clk 0:05:23.4]} 16. Bxg5 {[%clk 0:08:21.5]} 16... fxg5 {[%clk 0:05:22.1]}
17. Nxg5+ {[%clk 0:08:22]} 17... Ke8 {[%clk 0:05:18.8]} 18. O-O-O {[%clk
0:08:19.8]} 18... Qa5 {[%clk 0:05:09.4]} 19. Kb1 {[%clk 0:08:18.4]} 19... Nb4
{[%clk 0:04:23.4]} 20. a3 {[%clk 0:08:18.1]} 20... Nbc6 {[%clk 0:04:22.5]} 21.
Nh7 {[%clk 0:08:15.4]} 21... Rf7 {[%clk 0:04:21.9]} 22. g5 {[%clk 0:08:14.8]}
22... b4 {[%clk 0:04:15.1]} 23. g6 {[%clk 0:07:58.1]} 23... Rg7 {[%clk
0:04:14.6]} 24. Qd2 {[%clk 0:07:51.7]} 24... Nxg6 {[%clk 0:04:07]} 25. fxg6
{[%clk 0:07:28.7]} 25... Rxg6 {[%clk 0:04:08.2]} 26. Rg5 {[%clk 0:07:19.2]}
26... Rxg5 {[%clk 0:03:38.9]} 27. Qxg5 {[%clk 0:07:14.8]} 27... Be6 {[%clk
0:03:33.2]} 28. Qg6+ {[%clk 0:06:33]} 28... Kd7 {[%clk 0:03:30.9]} 29. Ng5
{[%clk 0:06:25]} 29... Bg8 {[%clk 0:03:17.8]} 30. Bh3+ {[%clk 0:06:20.7]} 30...
Kc7 {[%clk 0:03:18.7]} 31. Be6 {[%clk 0:06:13.4]} 31... bxa3 {[%clk 0:03:10.1]}
32. Bxg8 {[%clk 0:06:05.8]} 32... axb2 {[%clk 0:03:11]} 33. Ba2 {[%clk
0:05:45.4]} 33... Nb4 {[%clk 0:03:09.3]} 34. Qf7+ {[%clk 0:05:36.4]} 34... Kb6
{[%clk 0:03:06.7]} 35. Qe6 {[%clk 0:05:36.1]} 35... Rd8 {[%clk 0:02:10.4]} 36.
Nf7 {[%clk 0:05:32.7]} 36... Qa4 {[%clk 0:02:11.3]} 37. Rd2 {[%clk 0:05:21]}
37... Nxa2 {[%clk 0:01:27]} 38. Qxa2 {[%clk 0:05:13.1]} 38... Qxa2+ {[%clk
0:01:22.1]} 39. Kxa2 {[%clk 0:05:15]} 39... Rd7 {[%clk 0:01:23]} 40. Nxd6 {[%clk
0:05:10.5]} 40... Rxd6 {[%clk 0:01:24.9]} 41. Kxb2 {[%clk 0:05:10.8]} 41... c4
{[%clk 0:01:24.5]} 42. dxc4 {[%clk 0:05:07.9]} 42... Kc5 {[%clk 0:01:25.6]} 43.
Nd3+ {[%clk 0:05:08]} 43... Kxc4 {[%clk 0:01:26.7]} 44. Nxe5+ {[%clk 0:05:08.5]}
44... Kc5 {[%clk 0:01:27.9]} 45. Nd3+ {[%clk 0:05:09.2]} 45... Kc4 {[%clk
0:01:29.1]} 46. Rh2 {[%clk 0:05:02.8]} 46... Rb6+ {[%clk 0:01:29.8]} 47. Kc1
{[%clk 0:05:02.7]} 1-0

[Event "GrandPrix_29.05"]
[Site "Chess.com"]
[Date "2020.05.29"]
[Round "6"]
[White "Micki-taryan"]
[Black "VitaliyBernadskiy"]
[Result "1-0"]
[WhiteElo "2523"]
[BlackElo "2361"]
[TimeControl "600+2"]
[EndTime "11:56:55 PDT"]
[Termination "Micki-taryan won by resignation"]

1. d4 {[%clk 0:10:01.9]} 1... Nf6 {[%clk 0:09:59.9]} 2. Nf3 {[%clk 0:10:03.8]}
2... b6 {[%clk 0:09:54.3]} 3. c4 {[%clk 0:10:02]} 3... Bb7 {[%clk 0:09:51.7]} 4.
Nc3 {[%clk 0:10:03.4]} 4... e6 {[%clk 0:09:46.4]} 5. Bg5 {[%clk 0:10:04.8]} 5...
h6 {[%clk 0:09:43.7]} 6. Bh4 {[%clk 0:10:05.5]} 6... Be7 {[%clk 0:09:36.9]} 7.
Qc2 {[%clk 0:10:05.9]} 7... d5 {[%clk 0:09:26.4]} 8. cxd5 {[%clk 0:10:06.3]}
8... Nxd5 {[%clk 0:09:25.5]} 9. Bxe7 {[%clk 0:10:07.3]} 9... Qxe7 {[%clk
0:09:26.2]} 10. Rc1 {[%clk 0:10:06.7]} 10... O-O {[%clk 0:09:19.6]} 11. Nxd5
{[%clk 0:09:58.3]} 11... Bxd5 {[%clk 0:09:21.5]} 12. Qxc7 {[%clk 0:09:33.2]}
12... Qxc7 {[%clk 0:08:41.5]} 13. Rxc7 {[%clk 0:09:35.1]} 13... Nc6 {[%clk
0:08:43]} 14. e3 {[%clk 0:09:22.4]} 14... Rac8 {[%clk 0:08:43]} 15. Rxc8 {[%clk
0:09:08.3]} 15... Rxc8 {[%clk 0:08:44.9]} 16. Kd2 {[%clk 0:08:20.7]} 16... Bxa2
{[%clk 0:08:09.8]} 17. Ba6 {[%clk 0:08:18.7]} 17... Rb8 {[%clk 0:07:55.2]} 18.
Rc1 {[%clk 0:08:06.8]} 18... Bd5 {[%clk 0:07:52.4]} 19. Bb5 {[%clk 0:08:07.5]}
19... Ne7 {[%clk 0:07:38.1]} 20. Rc7 {[%clk 0:07:59.7]} 20... Rb7 {[%clk
0:07:37.1]} 21. Rc3 {[%clk 0:07:49.5]} 21... Rb8 {[%clk 0:07:37.8]} 22. Ne1
{[%clk 0:07:32.1]} 22... Nc8 {[%clk 0:07:21.2]} 23. f3 {[%clk 0:07:27.8]} 23...
Nd6 {[%clk 0:07:21.6]} 24. Bd3 {[%clk 0:07:29.4]} 24... f5 {[%clk 0:07:08.3]}
25. Nc2 {[%clk 0:07:29.3]} 25... a5 {[%clk 0:07:08.7]} 26. Rc7 {[%clk
0:07:20.4]} 26... Rb7 {[%clk 0:07:06]} 27. Rc3 {[%clk 0:07:05.3]} 27... g5
{[%clk 0:07:00.3]} 28. Na3 {[%clk 0:07:03.3]} 28... b5 {[%clk 0:05:42.8]} 29.
Rc5 {[%clk 0:07:02.7]} 29... g4 {[%clk 0:03:58]} 30. Nxb5 {[%clk 0:06:44]} 30...
Nxb5 {[%clk 0:03:57.3]} 31. Rxb5 {[%clk 0:06:45.9]} 31... Rxb5 {[%clk
0:03:53.8]} 32. Bxb5 {[%clk 0:06:47.8]} 32... gxf3 {[%clk 0:03:54.7]} 33. gxf3
{[%clk 0:06:49.7]} 33... Bxf3 {[%clk 0:03:55.2]} 34. Kc3 {[%clk 0:06:50]} 34...
Kf7 {[%clk 0:03:47.8]} 35. Kc4 {[%clk 0:06:45.5]} 35... Kf6 {[%clk 0:03:17.8]}
36. Kc5 {[%clk 0:06:41.9]} 36... e5 {[%clk 0:02:58]} 37. Kb6 {[%clk 0:06:05.1]}
37... exd4 {[%clk 0:02:50.7]} 38. exd4 {[%clk 0:06:07]} 38... f4 {[%clk
0:02:25.3]} 39. Kxa5 {[%clk 0:06:07.7]} 39... Bd1 {[%clk 0:02:25.8]} 40. Kb4
{[%clk 0:06:03.5]} 40... f3 {[%clk 0:02:23.2]} 41. Kc3 {[%clk 0:06:04.4]} 41...
Kf5 {[%clk 0:01:28]} 42. Kd2 {[%clk 0:06:00.3]} 42... Bb3 {[%clk 0:01:26]} 43.
Ke3 {[%clk 0:05:55.9]} 43... Bd5 {[%clk 0:01:24.2]} 44. b4 {[%clk 0:05:50.9]}
44... Ke6 {[%clk 0:01:17.4]} 45. Ba4 {[%clk 0:05:47]} 45... Kf5 {[%clk
0:01:15.7]} 46. Bd1 {[%clk 0:05:45.6]} 46... Kg4 {[%clk 0:01:12.2]} 47. b5
{[%clk 0:05:46.1]} 47... h5 {[%clk 0:01:08]} 48. b6 {[%clk 0:05:36.2]} 48... h4
{[%clk 0:01:08.4]} 49. Bb3 {[%clk 0:05:33.7]} 1-0

[Event "GrandPrix_29.05"]
[Site "Chess.com"]
[Date "2020.05.29"]
[Round "6"]
[White "vagpat"]
[Black "Margency"]
[Result "0-1"]
[WhiteElo "2198"]
[BlackElo "2146"]
[TimeControl "600+2"]
[EndTime "11:57:02 PDT"]
[Termination "Margency won by resignation"]

1. e4 {[%clk 0:10:01.9]} 1... e5 {[%clk 0:09:59.4]} 2. Nf3 {[%clk 0:10:02.2]}
2... Nc6 {[%clk 0:10:00.1]} 3. Bc4 {[%clk 0:09:59.6]} 3... Nf6 {[%clk
0:10:01.1]} 4. d3 {[%clk 0:10:00.3]} 4... Bc5 {[%clk 0:10:01.6]} 5. c3 {[%clk
0:09:57.7]} 5... O-O {[%clk 0:10:01.8]} 6. Bb3 {[%clk 0:09:58.4]} 6... d5 {[%clk
0:10:02.3]} 7. Nbd2 {[%clk 0:09:57.9]} 7... a5 {[%clk 0:09:57.9]} 8. O-O {[%clk
0:09:53.3]} 8... d4 {[%clk 0:09:53.9]} 9. Nc4 {[%clk 0:09:17.7]} 9... Bg4 {[%clk
0:09:26.5]} 10. a4 {[%clk 0:09:10.4]} 10... Nd7 {[%clk 0:09:22.3]} 11. h3 {[%clk
0:09:02.6]} 11... Bxf3 {[%clk 0:09:08.8]} 12. Qxf3 {[%clk 0:09:00.4]} 12... Qe7
{[%clk 0:08:57.2]} 13. Qg4 {[%clk 0:08:12]} 13... Kh8 {[%clk 0:08:44.1]} 14. Kh1
{[%clk 0:08:04.8]} 14... Rad8 {[%clk 0:08:14.1]} 15. Bg5 {[%clk 0:07:21.1]}
15... f6 {[%clk 0:08:09.1]} 16. Bd2 {[%clk 0:07:17.1]} 16... Ba7 {[%clk
0:08:05]} 17. Rad1 {[%clk 0:06:36.9]} 17... dxc3 {[%clk 0:07:30.9]} 18. Bxc3
{[%clk 0:06:34.7]} 18... Nc5 {[%clk 0:07:29]} 19. Bc2 {[%clk 0:06:34.3]} 19...
Nb4 {[%clk 0:07:19.9]} 20. Bxb4 {[%clk 0:05:28.3]} 20... axb4 {[%clk 0:07:19.6]}
21. Ne3 {[%clk 0:05:20.7]} 21... b3 {[%clk 0:07:02.2]} 22. Bb1 {[%clk
0:05:17.9]} 22... Ne6 {[%clk 0:06:50.6]} 23. Nf5 {[%clk 0:04:51.7]} 23... Qf7
{[%clk 0:06:46.4]} 24. Rc1 {[%clk 0:04:46.2]} 24... g6 {[%clk 0:06:41.1]} 25.
Ne3 {[%clk 0:04:26]} 25... Bd4 {[%clk 0:06:29]} 26. Nc4 {[%clk 0:04:12.9]} 26...
Nf4 {[%clk 0:06:06.7]} 27. g3 {[%clk 0:04:03.7]} 27... h5 {[%clk 0:06:00.9]} 28.
Qd1 {[%clk 0:03:41]} 28... Nxh3 {[%clk 0:04:46.8]} 29. Kg2 {[%clk 0:03:40.4]}
29... Ng5 {[%clk 0:04:39.2]} 30. Qxb3 {[%clk 0:03:36.4]} 30... f5 {[%clk
0:04:23.1]} 31. Nd2 {[%clk 0:02:25.7]} 31... Qd7 {[%clk 0:04:13.5]} 32. Qd5
{[%clk 0:02:25.9]} 32... Qc8 {[%clk 0:04:01.1]} 33. Qb3 {[%clk 0:02:06.2]} 33...
fxe4 {[%clk 0:03:55.4]} 34. dxe4 {[%clk 0:02:07.6]} 34... Qh3+ {[%clk
0:03:50.2]} 35. Kg1 {[%clk 0:02:08.8]} 35... Nf3+ {[%clk 0:03:47]} 36. Nxf3
{[%clk 0:01:59.2]} 36... Qxg3+ {[%clk 0:03:47.8]} 37. Kh1 {[%clk 0:02:00.9]}
37... Qh3+ {[%clk 0:03:48.8]} 0-1